Workbook

Sheet DQ Triathlon Timing Master
A1: Overall | B1: Bib # | C1: Name | D1: Category | E1: T-size | F1: Age | G1: Swimmer | H1: Race time | I1: Swim Split | J1: T-size | K1: Age | L1: Cyclist | M1: Race time | N1: Bike Split | O1: T-size | P1: Age | Q1: T-size | R1: Age | S1: Runnner | T1: Race time | U1: Run Split | V1: Total time
A3: 3 | B3: 3 | C3: Andrew Zuliani | D3: Male under 10 | H3: 00:06:16 | I3: =H3 -> 00:06:16 | J3: M | M3: 00:34:19 | N3: =M3-I3 -> 00:28:03 | O3: M | Q3: M | T3: 00:43:16 | U3: =T3-M3 -> 00:08:57 | V3: =T3 -> 00:43:16 | W3: 1
B4: 2 | C4: Hudson Green | D4: Male under 10 | H4: 00:06:39 | I4: 00:06:39 | J4: S | M4: 00:32:16 | N4: 00:25:37 | O4: M | Q4: M | T4: 00:45:03 | U4: 00:12:47 | V4: 00:45:03 | W4: 2
B5: 1 | C5: Jerome St. Louis | D5: Male under 10 | G5: =C5 -> Jerome St. Louis | H5: 00:08:35 | I5: =H5 -> 00:08:35 | J5: L | L5: =C5 -> Jerome St. Louis | M5: 00:38:40 | N5: =M5-I5 -> 00:30:05 | O5: L | Q5: M | S5: =C5 -> Jerome St. Louis | T5: 00:50:28 | U5: =T5-M5 -> 00:11:48 | V5: =T5 -> 00:50:28 | W5: 3
B6: 11 | C6: Payton Bolan | D6: Male under 10 | H6: 00:07:47 | I6: =H6 -> 00:07:47 | M6: 00:42:33 | N6: =M6-I6 -> 00:34:46 | T6: 00:53:52 | U6: =T6-M6 -> 00:11:19 | V6: =T6 -> 00:53:52 | W6: 4
A8: 4 | B8: 4 | C8: Noah Rioux | D8: Male 10 + | H8: 00:05:33 | I8: =H8 -> 00:05:33 | J8: L | M8: 00:24:52 | N8: =M8-I8 -> 00:19:19 | O8: L | Q8: L | T8: 00:33:39 | U8: =T8-M8 -> 00:08:47 | V8: =T8 -> 00:33:39 | W8: 1
B9: 9 | C9: Antoine Ouellette | D9: Male 10 + | H9: 00:05:41 | I9: =H9 -> 00:05:41 | J9: M | M9: 00:26:24 | N9: =M9-I9 -> 00:20:43 | O9: m | Q9: L | T9: 00:34:58 | U9: =T9-M9 -> 00:08:34 | V9: =T9 -> 00:34:58 | W9: 2
A10: 6 | B10: 6 | C10: Robert De LA Riva | D10: Male 10 + | H10: 00:05:05 | I10: 00:05:05 | J10: M | M10: 00:27:05 | N10: =M10-I10 -> 00:22:00 | O10: M | Q10: M | T10: 00:38:14 | U10: 00:11:09 | V10: 00:38:14 | W10: 3
A11: 7 | B11: 7 | C11: Liam Bruins | D11: Male 10 + | H11: 00:05:11 | I11: 00:05:11 | J11: M | M11: 00:29:34 | N11: 00:24:23 | O11: M | Q11: M | T11: 00:38:54 | U11: 00:09:20 | V11: 00:38:54 | W11: 4
A12: 8 | B12: 8 | C12: Alexandre Gauthier | D12: Male 10 + | H12: 00:05:54 | I12: 00:05:54 | J12: L | M12: 00:29:54 | N12: 00:24:00 | O12: L | Q12: L | T12: 00:41:18 | U12: 00:11:24 | V12: 00:41:18 | W12: 5
B13: 5 | C13: Liam Michaud | D13: Male 10 + | H13: 00:06:25 | I13: =H13 -> 00:06:25 | J13: L | M13: 00:36:15 | N13: =M13-I13 -> 00:29:50 | O13: L | Q13: L | T13: 00:48:27 | U13: =T13-M13 -> 00:12:12 | V13: =T13 -> 00:48:27 | W13: 6
A15: 10 | B15: 10 | C15: Emily Anderson | D15: Female under 10 | H15: 00:06:45 | I15: 00:06:45 | J15: M | M15: 00:45:35 | N15: 00:38:50 | O15: M | Q15: M | T15: 01:00:47 | U15: 00:15:12 | V15: 01:00:47 | W15: 1
A17: 12 | B17: 12 | C17: Elisabeth Richard | D17: Female 10 + | H17: 00:05:49 | I17: 00:05:49 | J17: M | M17: 00:27:05 | N17: 00:21:16 | O17: M | Q17: M | T17: 00:38:53 | U17: 00:11:48 | V17: 00:38:53 | W17: 1 | AA17: 584
A18: 13 | B18: 583 | I18: 00:00:00 | J18: L | N18: 00:00:00 | O18: S | Q18: S | U18: 00:00:00 | V18: 00:00:00
A19: 14 | B19: 584 | I19: 00:00:00 | J19: S | N19: 00:00:00 | O19: S | Q19: S | U19: 00:00:00 | V19: 00:00:00
A20: 15 | B20: 585 | I20: 00:00:00 | J20: L | N20: 00:00:00 | O20: L | Q20: M | U20: 00:00:00 | V20: 00:00:00
A21: 16 | B21: 586 | I21: 00:00:00 | J21: M | N21: 00:00:00 | O21: M | Q21: M | U21: 00:00:00 | V21: 00:00:00
A22: 17 | B22: 587 | I22: 00:00:00 | J22: S | N22: 00:00:00 | O22: S | Q22: S | U22: 00:00:00 | V22: 00:00:00
A23: 18 | B23: 588 | I23: 00:00:00 | J23: M | N23: 00:00:00 | O23: XL | Q23: L | U23: 00:00:00 | V23: 00:00:00
A24: 19 | B24: 589 | I24: 00:00:00 | J24: L | N24: 00:00:00 | O24: M | Q24: L | U24: 00:00:00 | V24: 00:00:00
A25: 20 | B25: 590 | I25: 00:00:00 | J25: M | N25: 00:00:00 | O25: L | Q25: M | U25: 00:00:00 | V25: 00:00:00
A26: 21 | B26: 591 | I26: 00:00:00 | J26: M | N26: 00:00:00 | O26: M | Q26: M | U26: 00:00:00 | V26: 00:00:00
A27: 22 | B27: 592 | I27: 00:00:00 | J27: L | N27: 00:00:00 | O27: M | Q27: s | U27: 00:00:00 | V27: 00:00:00
A28: 23 | B28: 593 | I28: 00:00:00 | J28: M | N28: 00:00:00 | O28: M | Q28: M | U28: 00:00:00 | V28: 00:00:00
A29: 24 | B29: 594 | I29: 00:00:00 | J29: L | N29: 00:00:00 | O29: M | Q29: L | U29: 00:00:00 | V29: 00:00:00
A30: 25 | B30: 595 | I30: 00:00:00 | J30: M | N30: 00:00:00 | O30: S | Q30: M | U30: 00:00:00 | V30: 00:00:00
A31: 26 | B31: 596 | I31: 00:00:00 | J31: S | N31: 00:00:00 | O31: M | Q31: S | U31: 00:00:00 | V31: 00:00:00
A32: 27 | B32: 597 | I32: 00:00:00 | J32: L | N32: 00:00:00 | O32: M | Q32: L | U32: 00:00:00 | V32: 00:00:00
A33: 28 | B33: 598 | I33: 00:00:00 | J33: M | N33: 00:00:00 | O33: M | Q33: S | U33: 00:00:00 | V33: 00:00:00
A34: 29 | B34: 599 | I34: 00:00:00 | J34: L | N34: 00:00:00 | O34: L | Q34: L | U34: 00:00:00 | V34: 00:00:00
A35: 30 | B35: 600 | I35: 00:00:00 | J35: L | N35: 00:00:00 | O35: M | Q35: S | U35: 00:00:00 | V35: 00:00:00
A36: 31 | I36: 00:00:00 | J36: M | N36: 00:00:00 | O36: M | Q36: M | U36: 00:00:00 | V36: 00:00:00
A37: 32 | I37: 00:00:00 | J37: S | N37: 00:00:00 | O37: M | Q37: S | U37: 00:00:00 | V37: 00:00:00
A38: 33 | I38: 00:00:00 | J38: M | N38: 00:00:00 | O38: M | U38: 00:00:00 | V38: 00:00:00
A39: 34 | I39: 00:00:00 | J39: L | N39: 00:00:00 | O39: L | Q39: L | U39: 00:00:00 | V39: 00:00:00
A40: 35 | I40: 00:00:00 | J40: M | N40: 00:00:00 | O40: M | Q40: M | U40: 00:00:00 | V40: 00:00:00
A41: 36 | I41: 00:00:00 | J41: M | N41: 00:00:00 | O41: M | Q41: M | U41: 00:00:00 | V41: 00:00:00
A42: 37 | I42: 00:00:00 | J42: M | N42: 00:00:00 | O42: M | Q42: M | U42: 00:00:00 | V42: 00:00:00
A43: 38 | I43: 00:00:00 | J43: S | N43: 00:00:00 | O43: S | Q43: S | U43: 00:00:00 | V43: 00:00:00
A44: 39 | I44: 00:00:00 | J44: s | N44: 00:00:00 | O44: s | Q44: s | U44: 00:00:00 | V44: 00:00:00
I45: 00:00:00 | N45: 00:00:00 | U45: 00:00:00 | V45: 00:00:00
I46: 00:00:00 | N46: 00:00:00 | U46: 00:00:00 | V46: 00:00:00
I47: 00:00:00 | N47: 00:00:00 | U47: 00:00:00 | V47: 00:00:00
I48: 00:00:00 | N48: 00:00:00 | U48: 00:00:00 | V48: 00:00:00
I49: 00:00:00 | N49: 00:00:00 | U49: 00:00:00 | V49: 00:00:00
I50: 00:00:00 | N50: 00:00:00 | U50: 00:00:00 | V50: 00:00:00
I51: 00:00:00 | N51: 00:00:00 | U51: 00:00:00 | V51: 00:00:00
I52: 00:00:00 | N52: 00:00:00 | U52: 00:00:00 | V52: 00:00:00
I53: 00:00:00 | N53: 00:00:00 | U53: 00:00:00 | V53: 00:00:00
I54: 00:00:00 | N54: 00:00:00 | U54: 00:00:00 | V54: 00:00:00
I55: 00:00:00 | N55: 00:00:00 | U55: 00:00:00 | V55: 00:00:00
I56: 00:00:00 | N56: 00:00:00 | U56: 00:00:00 | V56: 00:00:00
I57: 00:00:00 | N57: 00:00:00 | U57: 00:00:00 | V57: 00:00:00
I58: 00:00:00 | N58: 00:00:00 | U58: 00:00:00 | V58: 00:00:00
I59: 00:00:00 | N59: 00:00:00 | U59: 00:00:00 | V59: 00:00:00
I60: 00:00:00 | N60: 00:00:00 | U60: 00:00:00 | V60: 00:00:00
I61: 00:00:00 | N61: 00:00:00 | U61: 00:00:00 | V61: 00:00:00
I62: 00:00:00 | N62: 00:00:00 | U62: 00:00:00 | V62: 00:00:00
I63: 00:00:00 | N63: 00:00:00 | U63: 00:00:00 | V63: 00:00:00
I64: 00:00:00 | N64: 00:00:00 | U64: 00:00:00 | V64: 00:00:00
I65: 00:00:00 | N65: 00:00:00 | U65: 00:00:00 | V65: 00:00:00
I66: 00:00:00 | N66: 00:00:00 | U66: 00:00:00 | V66: 00:00:00
I67: 00:00:00 | N67: 00:00:00 | U67: 00:00:00 | V67: 00:00:00
I68: 00:00:00 | N68: 00:00:00 | U68: 00:00:00 | V68: 00:00:00
I69: 00:00:00 | N69: 00:00:00 | U69: 00:00:00 | V69: 00:00:00
I70: =H70 -> 00:00:00 | N70: 00:00:00 | U70: 00:00:00 | V70: 00:00:00
I71: 00:00:00 | N71: =M71-I71 -> 00:00:00 | U71: =T71-M71 -> 00:00:00 | V71: =T71 -> 00:00:00
I72: 00:00:00 | N72: 00:00:00 | U72: 00:00:00 | V72: 00:00:00
I73: 00:00:00 | N73: 00:00:00 | U73: 00:00:00 | V73: 00:00:00
I74: 00:00:00 | N74: 00:00:00 | U74: 00:00:00 | V74: 00:00:00
I75: 00:00:00 | N75: 00:00:00 | U75: 00:00:00 | V75: 00:00:00
I76: 00:00:00 | N76: 00:00:00 | U76: 00:00:00 | V76: 00:00:00
I77: 00:00:00 | N77: 00:00:00 | U77: 00:00:00 | V77: 00:00:00
I78: 00:00:00 | N78: 00:00:00 | U78: 00:00:00 | V78: 00:00:00
I79: 00:00:00 | N79: 00:00:00 | U79: 00:00:00 | V79: 00:00:00
I80: 00:00:00 | N80: 00:00:00 | U80: 00:00:00 | V80: 00:00:00
I81: 00:00:00 | N81: 00:00:00 | U81: 00:00:00 | V81: 00:00:00
I82: 00:00:00 | N82: 00:00:00 | U82: 00:00:00 | V82: 00:00:00
I83: 00:00:00 | N83: 00:00:00 | U83: 00:00:00 | V83: 00:00:00
I84: 00:00:00 | N84: 00:00:00 | U84: 00:00:00 | V84: 00:00:00
I85: 00:00:00 | N85: 00:00:00 | U85: 00:00:00 | V85: 00:00:00
I86: 00:00:00 | N86: 00:00:00 | U86: 00:00:00 | V86: 00:00:00
I87: 00:00:00 | N87: 00:00:00 | U87: 00:00:00 | V87: 00:00:00
I88: 00:00:00 | N88: 00:00:00 | U88: 00:00:00 | V88: 00:00:00
I89: 00:00:00 | N89: 00:00:00 | U89: 00:00:00 | V89: 00:00:00
I90: 00:00:00 | N90: 00:00:00 | U90: 00:00:00 | V90: 00:00:00
I91: 00:00:00 | N91: 00:00:00 | U91: 00:00:00 | V91: 00:00:00
I92: 00:00:00 | N92: 00:00:00 | U92: 00:00:00 | V92: 00:00:00
I93: 00:00:00 | N93: 00:00:00 | U93: 00:00:00 | V93: 00:00:00
I94: 00:00:00 | N94: 00:00:00 | U94: 00:00:00 | V94: 00:00:00
I95: 00:00:00 | N95: 00:00:00 | U95: 00:00:00 | V95: 00:00:00
I96: 00:00:00 | N96: 00:00:00 | U96: 00:00:00 | V96: 00:00:00
I97: 00:00:00 | N97: 00:00:00 | U97: 00:00:00 | V97: 00:00:00
I98: 00:00:00 | N98: 00:00:00 | U98: 00:00:00 | V98: 00:00:00
I99: 00:00:00 | N99: 00:00:00 | U99: 00:00:00 | V99: 00:00:00
I100: 00:00:00 | N100: 00:00:00 | U100: 00:00:00 | V100: 00:00:00
I101: 00:00:00 | N101: 00:00:00 | U101: 00:00:00 | V101: 00:00:00
I102: 00:00:00 | N102: 00:00:00 | U102: 00:00:00 | V102: 00:00:00
I103: 00:00:00 | N103: 00:00:00 | U103: 00:00:00 | V103: 00:00:00
I104: 00:00:00 | N104: 00:00:00 | U104: 00:00:00 | V104: 00:00:00
I105: 00:00:00 | N105: 00:00:00 | U105: 00:00:00 | V105: 00:00:00
I106: 00:00:00 | N106: 00:00:00 | U106: 00:00:00 | V106: 00:00:00
I107: 00:00:00 | N107: 00:00:00 | U107: 00:00:00 | V107: 00:00:00
I108: 00:00:00 | N108: 00:00:00 | U108: 00:00:00 | V108: 00:00:00
I109: 00:00:00 | N109: 00:00:00 | U109: 00:00:00 | V109: 00:00:00
I110: 00:00:00 | N110: 00:00:00 | U110: 00:00:00 | V110: 00:00:00
I111: 00:00:00 | N111: 00:00:00 | U111: 00:00:00 | V111: 00:00:00
I112: 00:00:00 | N112: 00:00:00 | U112: 00:00:00 | V112: 00:00:00
I113: 00:00:00 | N113: 00:00:00 | U113: 00:00:00 | V113: 00:00:00
I114: 00:00:00 | N114: 00:00:00 | U114: 00:00:00 | V114: 00:00:00
I115: 00:00:00 | N115: 00:00:00 | U115: 00:00:00 | V115: 00:00:00
I116: 00:00:00 | N116: 00:00:00 | U116: 00:00:00 | V116: 00:00:00
I117: 00:00:00 | N117: =#REF!-H117 ->  | U117: 00:00:00 | V117: 00:00:00
I118: 00:00:00 | N118: =#REF!-H118 ->  | U118: 00:00:00 | V118: 00:00:00
I119: 00:00:00 | N119: =#REF!-H119 ->  | U119: 00:00:00 | V119: 00:00:00
I120: 00:00:00 | N120: =#REF!-H120 ->  | U120: 00:00:00 | V120: 00:00:00
I121: 00:00:00 | N121: =#REF!-H121 ->  | U121: 00:00:00 | V121: 00:00:00
I122: 00:00:00 | N122: =#REF!-H122 ->  | U122: 00:00:00 | V122: 00:00:00
I123: 00:00:00 | N123: =#REF!-H123 ->  | U123: 00:00:00 | V123: 00:00:00
I124: 00:00:00 | N124: =#REF!-H124 ->  | U124: 00:00:00 | V124: 00:00:00
I125: 00:00:00 | N125: =#REF!-H125 ->  | U125: 00:00:00 | V125: 00:00:00
I126: 00:00:00 | N126: =#REF!-H126 ->  | U126: 00:00:00 | V126: 00:00:00
I127: 00:00:00 | N127: =#REF!-H127 ->  | U127: 00:00:00 | V127: 00:00:00
I128: 00:00:00 | N128: =#REF!-H128 ->  | U128: 00:00:00 | V128: 00:00:00
I129: 00:00:00 | N129: =#REF!-H129 ->  | U129: 00:00:00 | V129: 00:00:00
I130: 00:00:00 | N130: =#REF!-H130 ->  | U130: 00:00:00 | V130: 00:00:00
B131: =B129+1 -> 1 | D131: DQ | F131: f11 | I131: 00:00:00 | N131: =#REF!-H131 ->  | U131: 00:00:00 | V131: 00:00:00
B132: Time | I132: 00:00:00 | N132: =#REF!-H132 ->  | U132: 00:00:00 | V132: 00:00:00
B133: =B131+1 -> 2 | D133: DQ | F133: m11 | I133: 00:00:00 | N133: =#REF!-H133 ->  | U133: 00:00:00 | V133: 00:00:00
B134: Time | I134: =H134 -> 00:00:00 | N134: =#REF!-H134 ->  | U134: 00:00:00 | V134: 00:00:00
B135: =B133+1 -> 3 | D135: DQ | F135: m10 | I135: 00:00:00 | N135: =#REF!-H135 ->  | U135: =T135-#REF! ->  | V135: =SUM(U135,I135,N135,#REF!,) -> 
B136: Time | I136: 00:00:00 | N136: =#REF!-H136 ->  | U136: =T136-#REF! ->  | V136: =SUM(U136,I136,N136,#REF!,) -> 
B137: =B135+1 -> 4 | D137: DQ | F137: f10 | I137: 00:00:00 | N137: =#REF!-H137 ->  | U137: =T137-#REF! ->  | V137: =SUM(U137,I137,N137,#REF!,) -> 
B138: Time | I138: 00:00:00 | N138: =#REF!-H138 ->  | U138: =T138-#REF! ->  | V138: =SUM(U138,I138,N138,#REF!,) -> 
B139: =B137+1 -> 5 | D139: DQ | F139: m8 | I139: 00:00:00 | N139: =#REF!-H139 ->  | U139: =T139-#REF! ->  | V139: =SUM(U139,I139,N139,#REF!,) -> 
B140: Time | I140: 00:00:00 | N140: =#REF!-H140 ->  | U140: =T140-#REF! ->  | V140: =SUM(U140,I140,N140,#REF!,) -> 
B141: =B139+1 -> 6 | D141: DQ | F141: m12 | I141: 00:00:00 | N141: =#REF!-H141 ->  | U141: =T141-#REF! ->  | V141: =SUM(U141,I141,N141,#REF!,) -> 
B142: Time | I142: 00:00:00 | N142: =#REF!-H142 ->  | U142: =T142-#REF! ->  | V142: =SUM(U142,I142,N142,#REF!,) -> 
B143: =B141+1 -> 7 | D143: DQ | F143: m11 | I143: 00:00:00 | N143: =#REF!-H143 ->  | U143: =T143-#REF! ->  | V143: =SUM(U143,I143,N143,#REF!,) -> 
B144: Time | I144: 00:00:00 | N144: =#REF!-H144 ->  | U144: =T144-#REF! ->  | V144: =SUM(U144,I144,N144,#REF!,) -> 
B145: =B143+1 -> 8 | D145: DQ | F145: f7 | I145: 00:00:00 | N145: =#REF!-H145 ->  | U145: =T145-#REF! ->  | V145: =SUM(U145,I145,N145,#REF!,) -> 
B146: Time | I146: 00:00:00 | N146: =#REF!-H146 ->  | U146: =T146-#REF! ->  | V146: =SUM(U146,I146,N146,#REF!,) -> 
B147: =B145+1 -> 9 | D147: DQ | F147: f9 | I147: 00:00:00 | N147: =#REF!-H147 ->  | U147: =T147-#REF! ->  | V147: =SUM(U147,I147,N147,#REF!,) -> 
B148: Time | I148: 00:00:00 | N148: =#REF!-H148 ->  | U148: =T148-#REF! ->  | V148: =SUM(U148,I148,N148,#REF!,) -> 
B149: =B147+1 -> 10 | D149: DQ | F149: m12 | I149: 00:00:00 | N149: =#REF!-H149 ->  | U149: =T149-#REF! ->  | V149: =SUM(U149,I149,N149,#REF!,) -> 
B150: Time | I150: 00:00:00 | N150: =#REF!-H150 ->  | U150: =T150-#REF! ->  | V150: =SUM(U150,I150,N150,#REF!,) -> 
B151: =B149+1 -> 11 | D151: DQ | F151: m? | I151: 00:00:00 | N151: =#REF!-H151 ->  | U151: =T151-#REF! ->  | V151: =SUM(U151,I151,N151,#REF!,) -> 
B152: Time | I152: 00:00:00 | N152: =#REF!-H152 ->  | U152: =T152-#REF! ->  | V152: =SUM(U152,I152,N152,#REF!,) -> 
B153: =B151+1 -> 12 | D153: DQ | F153: m12 | I153: 00:00:00 | N153: =#REF!-H153 ->  | U153: =T153-#REF! ->  | V153: =SUM(U153,I153,N153,#REF!,) -> 
B154: Time | I154: 00:00:00 | N154: =#REF!-H154 ->  | U154: =T154-#REF! ->  | V154: =SUM(U154,I154,N154,#REF!,) -> 
B155: =B153+1 -> 13 | D155: DQ | F155: f8 | I155: 00:00:00 | N155: =#REF!-H155 ->  | U155: =T155-#REF! ->  | V155: =SUM(U155,I155,N155,#REF!,) -> 
B156: Time | I156: 00:00:00 | N156: =#REF!-H156 ->  | U156: =T156-#REF! ->  | V156: =SUM(U156,I156,N156,#REF!,) -> 
B157: =B155+1 -> 14 | D157: DQ | F157: m12 | I157: 00:00:00 | N157: =#REF!-H157 ->  | U157: =T157-#REF! ->  | V157: =SUM(U157,I157,N157,#REF!,) -> 
B158: Time | I158: 00:00:00 | N158: =#REF!-H158 ->  | U158: =T158-#REF! ->  | V158: =SUM(U158,I158,N158,#REF!,) -> 
B159: =B157+1 -> 15 | D159: DQ | F159: f11 | I159: 00:00:00 | N159: =#REF!-H159 ->  | U159: =T159-#REF! ->  | V159: =SUM(U159,I159,N159,#REF!,) -> 
B160: Time | I160: 00:00:00 | N160: =#REF!-H160 ->  | U160: =T160-#REF! ->  | V160: =SUM(U160,I160,N160,#REF!,) -> 
B161: =B159+1 -> 16 | I161: 00:00:00 | N161: =#REF!-H161 ->  | U161: =T161-#REF! ->  | V161: =SUM(U161,I161,N161,#REF!,) -> 
B162: Time | I162: 00:00:00 | N162: =#REF!-H162 ->  | U162: =T162-#REF! ->  | V162: =SUM(U162,I162,N162,#REF!,) -> 
B163: =B161+1 -> 17 | I163: 00:00:00 | N163: =#REF!-H163 ->  | U163: =T163-#REF! ->  | V163: =SUM(U163,I163,N163,#REF!,) -> 
B164: Time | I164: 00:00:00 | N164: =#REF!-H164 ->  | U164: =T164-#REF! ->  | V164: =SUM(U164,I164,N164,#REF!,) -> 
B165: =B163+1 -> 18 | I165: 00:00:00 | N165: =#REF!-H165 ->  | U165: =T165-#REF! ->  | V165: =SUM(U165,I165,N165,#REF!,) -> 
B166: Time | I166: 00:00:00 | N166: =#REF!-H166 ->  | U166: =T166-#REF! ->  | V166: =SUM(U166,I166,N166,#REF!,) -> 
B167: =B165+1 -> 19 | I167: 00:00:00 | N167: =#REF!-H167 ->  | U167: =T167-#REF! ->  | V167: =SUM(U167,I167,N167,#REF!,) -> 
B168: Time | I168: 00:00:00 | N168: =#REF!-H168 ->  | U168: =T168-#REF! ->  | V168: =SUM(U168,I168,N168,#REF!,) -> 
B169: =B167+1 -> 20 | I169: 00:00:00 | N169: =#REF!-H169 ->  | U169: =T169-#REF! ->  | V169: =SUM(U169,I169,N169,#REF!,) -> 
B170: Time | I170: 00:00:00 | N170: =#REF!-H170 ->  | U170: =T170-#REF! ->  | V170: =SUM(U170,I170,N170,#REF!,) -> 
B171: =B169+1 -> 21 | I171: 00:00:00 | N171: =#REF!-H171 ->  | U171: =T171-#REF! ->  | V171: =SUM(U171,I171,N171,#REF!,) -> 
B172: Time | I172: 00:00:00 | N172: =#REF!-H172 ->  | U172: =T172-#REF! ->  | V172: =SUM(U172,I172,N172,#REF!,) -> 
B173: =B171+1 -> 22 | I173: 00:00:00 | N173: =#REF!-H173 ->  | U173: =T173-#REF! ->  | V173: =SUM(U173,I173,N173,#REF!,) -> 
B174: Time | I174: 00:00:00 | N174: =#REF!-H174 ->  | U174: =T174-#REF! ->  | V174: =SUM(U174,I174,N174,#REF!,) -> 
B175: =B173+1 -> 23 | I175: 00:00:00 | N175: =#REF!-H175 ->  | U175: =T175-#REF! ->  | V175: =SUM(U175,I175,N175,#REF!,) -> 
I176: 00:00:00 | N176: =#REF!-H176 ->  | U176: =T176-#REF! ->  | V176: =SUM(U176,I176,N176,#REF!,) -> 
I177: 00:00:00 | N177: =#REF!-H177 ->  | U177: =T177-#REF! ->  | V177: =SUM(U177,I177,N177,#REF!,) -> 
I178: 00:00:00 | N178: =#REF!-H178 ->  | U178: =T178-#REF! ->  | V178: =SUM(U178,I178,N178,#REF!,) -> 
I179: 00:00:00 | N179: =#REF!-H179 ->  | U179: =T179-#REF! ->  | V179: =SUM(U179,I179,N179,#REF!,) -> 
I180: 00:00:00 | N180: =#REF!-H180 ->  | U180: =T180-#REF! ->  | V180: =SUM(U180,I180,N180,#REF!,) -> 
I181: 00:00:00 | N181: =#REF!-H181 ->  | U181: =T181-#REF! ->  | V181: =SUM(U181,I181,N181,#REF!,) -> 
I182: 00:00:00 | N182: =#REF!-H182 ->  | U182: =T182-#REF! ->  | V182: =SUM(U182,I182,N182,#REF!,) -> 
I183: 00:00:00 | N183: =#REF!-H183 ->  | U183: =T183-#REF! ->  | V183: =SUM(U183,I183,N183,#REF!,) -> 
I184: 00:00:00 | N184: =#REF!-H184 ->  | U184: =T184-#REF! ->  | V184: =SUM(U184,I184,N184,#REF!,) -> 
I185: 00:00:00 | N185: =#REF!-H185 ->  | U185: =T185-#REF! ->  | V185: =SUM(U185,I185,N185,#REF!,) -> 
I186: 00:00:00 | N186: =#REF!-H186 ->  | U186: =T186-#REF! ->  | V186: =SUM(U186,I186,N186,#REF!,) -> 
I187: 00:00:00 | N187: =#REF!-H187 ->  | U187: =T187-#REF! ->  | V187: =SUM(U187,I187,N187,#REF!,) -> 
I188: 00:00:00 | N188: =#REF!-H188 ->  | U188: =T188-#REF! ->  | V188: =SUM(U188,I188,N188,#REF!,) -> 
I189: 00:00:00 | N189: =#REF!-H189 ->  | U189: =T189-#REF! ->  | V189: =SUM(U189,I189,N189,#REF!,) -> 
I190: 00:00:00 | N190: =#REF!-H190 ->  | U190: =T190-#REF! ->  | V190: =SUM(U190,I190,N190,#REF!,) -> 
I191: 00:00:00 | N191: =#REF!-H191 ->  | U191: =T191-#REF! ->  | V191: =SUM(U191,I191,N191,#REF!,) -> 
I192: 00:00:00 | N192: =#REF!-H192 ->  | U192: =T192-#REF! ->  | V192: =SUM(U192,I192,N192,#REF!,) -> 
I193: 00:00:00 | N193: =#REF!-H193 ->  | U193: =T193-#REF! ->  | V193: =SUM(U193,I193,N193,#REF!,) -> 
I194: 00:00:00 | N194: =#REF!-H194 ->  | U194: =T194-#REF! ->  | V194: =SUM(U194,I194,N194,#REF!,) -> 
I195: 00:00:00 | N195: =#REF!-H195 ->  | U195: =T195-#REF! ->  | V195: =SUM(U195,I195,N195,#REF!,) -> 
I196: 00:00:00 | N196: =#REF!-H196 ->  | U196: =T196-#REF! ->  | V196: =SUM(U196,I196,N196,#REF!,) -> 
I197: 00:00:00 | N197: =#REF!-H197 ->  | U197: =T197-#REF! ->  | V197: =SUM(U197,I197,N197,#REF!,) -> 
I198: =H198 -> 00:00:00 | N198: =#REF!-H198 ->  | U198: =T198-#REF! ->  | V198: =SUM(U198,I198,N198,#REF!,) -> 
I199: 00:00:00 | N199: =#REF!-H199 ->  | U199: =T199-#REF! ->  | V199: =SUM(U199,I199,N199,#REF!,) -> 
I200: 00:00:00 | N200: =#REF!-H200 ->  | U200: =T200-#REF! ->  | V200: =SUM(U200,I200,N200,#REF!,) -> 
I201: 00:00:00 | N201: =#REF!-H201 ->  | U201: =T201-#REF! ->  | V201: =SUM(U201,I201,N201,#REF!,) -> 
I202: 00:00:00 | N202: =#REF!-H202 ->  | U202: =T202-#REF! ->  | V202: =SUM(U202,I202,N202,#REF!,) -> 
I203: 00:00:00 | N203: =#REF!-H203 ->  | U203: =T203-#REF! ->  | V203: =SUM(U203,I203,N203,#REF!,) -> 
I204: 00:00:00 | N204: =#REF!-H204 ->  | U204: =T204-#REF! ->  | V204: =SUM(U204,I204,N204,#REF!,) -> 
... 153 more rows

Sheet 2016 Timing Master
A1: Overall | B1: Bib # | C1: Name | D1: Category | E1: T-size | F1: Age | G1: Swimmer | H1: Race time | I1: Swim Split | J1: T-size | K1: Age | L1: Cyclist | M1: Race time | N1: Train Delay | O1: New Race Time | P1: Bike Split | Q1: T-size | R1: Age | S1: Paddler | T1: Race time | U1: Paddle Split | V1: T-size | W1: Age | X1: Runnner | Y1: Race time | Z1: Run Split | AA1: Total time
A3: 1 | B3: 101 | C3: Sara McIlraith | D3: Solo F | G3: =C3 -> Sara McIlraith | H3: 00:22:04 | I3: =H3 -> 00:22:04 | J3: L | L3: =C3 -> Sara McIlraith | M3: 01:17:19 | O3: =M3-N3 -> 01:17:19 | P3: =O3-H3 -> 00:55:15 | Q3: L | S3: =L3 -> Sara McIlraith | T3: 01:53:51 | U3: =T3-M3 -> 00:36:32 | V3: M | X3: =C3 -> Sara McIlraith | Y3: 02:27:29 | Z3: =Y3-T3 -> 00:33:38 | AA3: =SUM(Z3,I3,P3,U3,) -> 02:27:29
A4: 2 | B4: 102 | C4: Monika Haring | D4: Solo F | G4: =C4 -> Monika Haring | H4: 00:23:24 | I4: 00:23:24 | J4: S | L4: =C4 -> Monika Haring | M4: 01:18:22 | O4: =M4-N4 -> 01:18:22 | P4: =O4-H4 -> 00:54:58 | Q4: M | S4: =L4 -> Monika Haring | T4: 01:59:21 | U4: =T4-M4 -> 00:40:59 | V4: M | X4: =C4 -> Monika Haring | Y4: 02:40:32 | Z4: 00:41:11 | AA4: 02:40:32
A5: 3 | B5: 103 | D5: Solo F | G5: 00:00:00 | I5: 00:00:00 | J5: M | L5: 00:00:00 | O5: 00:00:00 | P5: 00:00:00 | Q5: M | S5: 00:00:00 | U5: 00:00:00 | V5: M | X5: 00:00:00 | Z5: 00:00:00 | AA5: 00:00:00
A6: 8 | B6: 108 | C6: Buddy Green | D6: Solo m | G6: =C6 -> Buddy Green | H6: 00:13:33 | I6: =H6 -> 00:13:33 | J6: L | L6: =C6 -> Buddy Green | M6: 00:59:09 | O6: =M6-N6 -> 00:59:09 | P6: =O6-H6 -> 00:45:36 | Q6: L | S6: =L6 -> Buddy Green | T6: 01:36:59 | U6: =T6-M6 -> 00:37:50 | V6: L | X6: =C6 -> Buddy Green | Y6: 02:12:14 | Z6: =Y6-T6 -> 00:35:15 | AA6: =SUM(Z6,I6,P6,U6,) -> 02:12:14
A7: 13 | B7: 113 | C7: Kerry Abols | D7: Solo m | G7: Kerry Abols | H7: 00:20:36 | I7: 00:20:36 | J7: L | L7: Kerry Abols | M7: 01:09:53 | O7: 01:09:53 | P7: 00:49:17 | Q7: S | S7: Kerry Abols | T7: 01:43:23 | U7: 00:33:30 | V7: S | X7: Kerry Abols | Y7: 02:16:28 | Z7: 00:33:05 | AA7: 02:16:28
A8: 10 | B8: 110 | C8: Todd Withers | D8: Solo m | G8: Todd Withers | H8: 00:24:38 | I8: 00:24:38 | J8: M | L8: Todd Withers | M8: 01:22:37 | O8: 01:22:37 | P8: 00:57:59 | Q8: M | S8: Todd Withers | T8: 01:56:40 | U8: 00:34:03 | V8: M | X8: Todd Withers | Y8: 02:30:05 | Z8: 00:33:25 | AA8: 02:30:05
A9: 12 | B9: 112 | C9: Clinton Lahnalampi | D9: Solo m | G9: Clinton Lahnalampi | H9: 00:23:07 | I9: 00:23:07 | J9: M | L9: Clinton Lahnalampi | M9: 01:15:16 | O9: 01:15:16 | P9: 00:52:09 | Q9: M | S9: Clinton Lahnalampi | T9: 01:54:07 | U9: 00:38:51 | V9: M | X9: Clinton Lahnalampi | Y9: 02:33:00 | Z9: 00:38:53 | AA9: 02:33:00
A10: 11 | B10: 111 | C10: Scott Hopkins | D10: Solo m | G10: Scott Hopkins | H10: 00:25:47 | I10: 00:25:47 | J10: M | L10: Scott Hopkins | M10: 01:25:52 | O10: 01:25:52 | P10: 01:00:05 | Q10: M | S10: Scott Hopkins | T10: 02:05:34 | U10: 00:39:42 | V10: S | X10: Scott Hopkins | Y10: 02:54:50 | Z10: 00:49:16 | AA10: 02:54:50
A11: 9 | B11: 109 | C11: Darren Kleven | D11: Solo m | G11: Darren Kleven | J11: M | L11: Darren Kleven | O11: 00:00:00 | Q11: m | S11: Darren Kleven | U11: 00:00:00 | V11: L | X11: Darren Kleven | Z11: 00:00:00
A12: 14 | B12: 114 | D12: Solo m | G12: 00:00:00 | J12: S | L12: 00:00:00 | O12: 00:00:00 | Q12: S | S12: 00:00:00 | U12: 00:00:00 | V12: S | X12: 00:00:00 | Z12: 00:00:00
A13: 21 | B13: 121 | C13: Team 50+ | D13: Women's Pairs | G13: Laura Young | H13: 00:20:34 | I13: =H13 -> 00:20:34 | J13: M | L13: Kelly Bowie | M13: 01:34:57 | O13: =M13-N13 -> 01:34:57 | P13: =O13-H13 -> 01:14:23 | Q13: M | S13: Laura Young | T13: 02:17:01 | U13: =T13-M13 -> 00:42:04 | V13: M | X13: Kelly Bowie | Y13: 03:02:27 | Z13: =Y13-T13 -> 00:45:26 | AA13: =SUM(Z13,I13,P13,U13,) -> 03:02:27
A14: 20 | B14: 120 | C14: Not Defined | D14: Women's Pairs | G14: Lindsay Raymond | H14: 00:26:41 | I14: =H14 -> 00:26:41 | J14: M | L14: Lindsay Raymond | M14: 01:40:01 | O14: =M14-N14 -> 01:40:01 | P14: =O14-H14 -> 01:13:20 | Q14: L | S14: Audra Nicholson | T14: 02:20:17 | U14: =T14-M14 -> 00:40:16 | V14: M | X14: Audra Nicholson | Y14: 03:17:48 | Z14: =Y14-T14 -> 00:57:31 | AA14: =SUM(Z14,I14,P14,U14,) -> 03:17:48
A15: 19 | B15: 119 | C15: Why Are We Friends? | D15: Women's Pairs | G15: Terri Lepage | H15: 00:23:54 | I15: =H15 -> 00:23:54 | J15: L | L15: Mariane Larose | M15: 01:29:37 | O15: =M15-N15 -> 01:29:37 | P15: =O15-H15 -> 01:05:43 | Q15: M | S15: Mariane Larose | T15: 02:26:39 | U15: =T15-M15 -> 00:57:02 | V15: L | X15: Terri Lepage | Y15: 03:21:00 | Z15: =Y15-T15 -> 00:54:21 | AA15: =SUM(Z15,I15,P15,U15,) -> 03:21:00
A16: 22 | B16: 122 | D16: Women's Pairs | J16: L | O16: 00:00:00 | Q16: M | U16: 00:00:00 | V16: s | Z16: 00:00:00
A17: 33 | B17: 133 | C17: Rob& Steve | D17: Men's Pairs | G17: Rob Gregoris | H17: 00:19:33 | I17: =H17 -> 00:19:33 | J17: M | L17: Steve Faulkner | M17: 01:14:55 | O17: =M17-N17 -> 01:14:55 | P17: =O17-H17 -> 00:55:22 | Q17: M | S17: Rob Gregoris | T17: 01:45:02 | U17: =T17-M17 -> 00:30:07 | X17: Steve Faulkner | Y17: 02:22:26 | Z17: =Y17-T17 -> 00:37:24 | AA17: =SUM(Z17,I17,P17,U17,) -> 02:22:26
A18: 30 | B18: 130 | C18: WarDodds | D18: Men's Pairs | G18: Chris Dodds | H18: 00:21:08 | I18: =H18 -> 00:21:08 | J18: L | L18: Colin Ward | M18: 01:14:36 | O18: =M18-N18 -> 01:14:36 | P18: =O18-H18 -> 00:53:28 | Q18: M | S18: Colin ward | T18: 01:50:46 | U18: =T18-M18 -> 00:36:10 | V18: S | X18: Chris Dodds | Y18: 02:26:21 | Z18: =Y18-T18 -> 00:35:35 | AA18: =SUM(Z18,I18,P18,U18,) -> 02:26:21
A19: 31 | B19: 131 | C19: Skierszkan Brothers | D19: Men's Pairs | G19: Karl Skierszkan | H19: 00:28:33 | I19: =H19 -> 00:28:33 | J19: M | L19: Simon Skierszkan | M19: 01:28:02 | O19: =M19-N19 -> 01:28:02 | P19: =O19-H19 -> 00:59:29 | Q19: M | S19: Karl Skierszkan | T19: 02:07:54 | U19: =T19-M19 -> 00:39:52 | V19: M | X19: Simon Skierszkan | Y19: 02:54:12 | Z19: =Y19-T19 -> 00:46:18 | AA19: =SUM(Z19,I19,P19,U19,) -> 02:54:12
A20: 29 | B20: 129 | C20: Fidel Castro's Beard | D20: Men's Pairs | G20: Edward Allore | H20: 00:22:52 | I20: =H20 -> 00:22:52 | J20: L | L20: Paul Gantous | M20: 01:24:34 | O20: =M20-N20 -> 01:24:34 | P20: =O20-H20 -> 01:01:42 | Q20: L | S20: Edward Allore | T20: 02:15:22 | U20: =T20-M20 -> 00:50:48 | V20: L | X20: Paul Gantous | Y20: 02:57:19 | Z20: =Y20-T20 -> 00:41:57 | AA20: =SUM(Z20,I20,P20,U20,) -> 02:57:19
A21: 32 | B21: 132 | C21: Adrian and Philippe | D21: Men's Pairs | G21: Philippe de la Riva | H21: 00:18:27 | I21: =H21 -> 00:18:27 | J21: S | L21: Philippe de la Riva | M21: 01:41:25 | O21: =M21-N21 -> 01:41:25 | P21: =O21-H21 -> 01:22:58 | Q21: M | S21: Adrian Marcolini | T21: 02:22:51 | U21: =T21-M21 -> 00:41:26 | V21: S | X21: Adrian Marcolini | Y21: 03:02:35 | Z21: =Y21-T21 -> 00:39:44 | AA21: =SUM(Z21,I21,P21,U21,) -> 03:02:35
A22: 34 | B22: 134 | D22: Men's Pairs | J22: L | O22: 00:00:00 | Q22: L | U22: 00:00:00 | V22: L | Z22: 00:00:00
B23: 140 | C23: Scrambled Legs | D23: mixed pairs | G23: Melanie Stacknik | H23: 00:23:08 | I23: =H23 -> 00:23:08 | L23: Tyler Moise | M23: 01:20:49 | O23: =M23-N23 -> 01:20:49 | P23: =O23-H23 -> 00:57:41 | S23: Tyler Moise | T23: 01:58:04 | U23: =T23-M23 -> 00:37:15 | X23: Melanie Stacknik | Y23: 02:37:52 | Z23: =Y23-T23 -> 00:39:48 | AA23: =SUM(Z23,I23,P23,U23,) -> 02:37:52
B24: 142 | C24: Remember Terry 2 | D24: mixed pairs | G24: Joe Wiley | H24: 00:20:32 | I24: =H24 -> 00:20:32 | L24: Heather Rea | M24: 01:19:55 | O24: =M24-N24 -> 01:19:55 | P24: =O24-H24 -> 00:59:23 | S24: Joe Wiley | T24: 01:59:28 | U24: =T24-M24 -> 00:39:33 | X24: Heather Rea | Y24: 02:48:13 | Z24: =Y24-T24 -> 00:48:45 | AA24: =SUM(Z24,I24,P24,U24,) -> 02:48:13
A25: 39 | B25: 139 | C25: Just Married | D25: mixed pairs | G25: Tatiana Allore | H25: 00:26:34 | I25: =H25 -> 00:26:34 | J25: s | L25: Tatiana Allore | M25: 01:32:00 | O25: =M25-N25 -> 01:32:00 | P25: =O25-H25 -> 01:05:26 | Q25: s | S25: Philippe Boudreau | T25: 02:10:30 | U25: =T25-M25 -> 00:38:30 | V25: s | X25: Tatiana Allore | Y25: 02:56:07 | Z25: =Y25-T25 -> 00:45:37 | AA25: =SUM(Z25,I25,P25,U25,) -> 02:56:07
B26: 141 | C26: Oldish | D26: mixed pairs | G26: André Allore | H26: 00:25:13 | I26: =H26 -> 00:25:13 | L26: Julia Skierszkan | M26: 01:35:43 | O26: =M26-N26 -> 01:35:43 | P26: =O26-H26 -> 01:10:30 | S26: André Allore | T26: 02:20:28 | U26: =T26-M26 -> 00:44:45 | X26: Julia Skierszkan | Y26: 03:13:56 | Z26: =Y26-T26 -> 00:53:28 | AA26: =SUM(Z26,I26,P26,U26,) -> 03:13:56
B27: 148 | D27: mixed pairs | O27: 00:00:00 | U27: 00:00:00 | Z27: =Y27-T27 -> 00:00:00 | AA27: =SUM(Z27,I27,P27,U27,) -> 
B28: 184 | C28: We'll Dragon Wing the Begonias out of you | D28: Four Mixed | G28: Samantha Tobin | H28: 00:22:01 | I28: =H28 -> 00:22:01 | L28: Charlie Reid | M28: 01:14:10 | O28: =M28-N28 -> 01:14:10 | P28: =O28-H28 -> 00:52:09 | S28: Peter Vanburen | T28: 01:45:46 | U28: =T28-M28 -> 00:31:36 | X28: Katie Reid | Y28: 02:22:58 | Z28: =Y28-T28 -> 00:37:12 | AA28: =SUM(Z28,I28,P28,U28,) -> 02:22:58
B29: 151 | C29: Danger Cat | D29: Four Mixed | G29: Sylvia Donato | H29: 00:20:14 | I29: 00:20:14 | L29: Andrew Noob | M29: 01:12:34 | O29: 01:12:34 | P29: 00:52:20 | S29: Randy Donato | T29: 01:46:15 | U29: 00:33:41 | X29: Tatum Del Bosco | Y29: 02:25:27 | Z29: 00:39:12 | AA29: 02:25:27
B30: 162 | C30: Team Legacy | D30: Four Mixed | G30: Kelly Hotta | H30: 00:15:18 | I30: 00:15:18 | L30: Justine Watson | M30: 01:22:54 | O30: 01:22:54 | P30: 01:07:36 | S30: Jordan Hotta | T30: 01:59:26 | U30: 00:36:32 | X30: Kortney Watson | Y30: 02:33:06 | Z30: 00:33:40 | AA30: 02:33:06
B31: 171 | C31: No Pikachu Here | D31: Four Mixed | G31: Dave Hawkins | H31: 00:23:36 | I31: 00:23:36 | L31: Suzi Halet | M31: 01:16:45 | O31: 01:16:45 | P31: 00:53:09 | S31: Katherine Hahn | T31: 02:02:09 | U31: 00:45:24 | X31: Stacey Carter | Y31: 02:33:09 | Z31: 00:31:00 | AA31: 02:33:09
B32: 163 | C32: Beaton Off | D32: Four Mixed | G32: Carla Bifolchi | H32: 00:28:25 | I32: 00:28:25 | L32: Justin Sawchuk | M32: 01:19:02 | O32: 01:19:02 | P32: 00:50:37 | S32: Morgan Bialkowski | T32: 01:57:16 | U32: 00:38:14 | X32: Chrystal Prosperi | Y32: 02:34:28 | Z32: 00:37:12 | AA32: 02:34:28
B33: 156 | C33: Splash, Pedal, Paddle, Dash | D33: Four Mixed | G33: Helen Bobiwash | H33: 00:27:03 | I33: 00:27:03 | L33: Linda Conroy | M33: 01:26:53 | O33: 01:26:53 | P33: 00:59:50 | S33: Norm Milford | T33: 02:03:35 | U33: 00:36:42 | X33: Jarod Milford | Y33: 02:35:12 | Z33: 00:31:37 | AA33: 02:35:12
B34: 154 | C34: The Neature Walkers | D34: Four Mixed | G34: Paris Macey | H34: 00:19:19 | I34: 00:19:19 | L34: Kate Richards | M34: 01:24:06 | O34: 01:24:06 | P34: 01:04:47 | S34: Brendan Waddell | T34: 02:01:31 | U34: 00:37:25 | X34: Allison Caswell | Y34: 02:37:01 | Z34: 00:35:30 | AA34: 02:37:01
B35: 157 | C35: Sudbury Triple Threat | D35: Four Mixed | G35: Isabella Mastroianni | H35: 00:16:59 | I35: 00:16:59 | L35: Christina Mastroianni | M35: 01:10:14 | O35: 01:10:14 | P35: 00:53:15 | S35: Connor Watson | T35: 01:59:06 | U35: 00:48:52 | X35: Isabella Mastroianni | Y35: 02:37:32 | Z35: 00:38:26 | AA35: 02:37:32
B36: 149 | C36: BioPed Blasters | D36: Four Mixed | G36: Jen White | H36: 00:28:56 | I36: 00:28:56 | L36: Kara Fillier | M36: 01:26:10 | O36: 01:26:10 | P36: 00:57:14 | S36: Robin White | T36: 01:59:53 | U36: 00:33:43 | X36: Lisa Labreche | Y36: 02:41:45 | Z36: 00:41:52 | AA36: 02:41:45
B37: 170 | C37: Adventure 365 | D37: Four Mixed | G37: Tyler Richardson | H37: 00:16:51 | I37: 00:16:51 | L37: Fabricio Benjamin | M37: 01:16:12 | O37: 01:16:12 | P37: 00:59:21 | S37: Marie-Lea Green | T37: 02:06:00 | U37: 00:49:48 | X37: Amber Konikow | Y37: 02:44:08 | Z37: 00:38:08 | AA37: 02:44:08
B38: 158 | C38: Floaters and Sinkers | D38: Four Mixed | G38: Kimberley Larkman | H38: 00:23:30 | I38: 00:23:30 | L38: Nicolas McGrath | M38: 01:26:24 | O38: 01:26:24 | P38: 01:02:54 | S38: Marcel Beauchamp | T38: 02:07:12 | U38: 00:40:48 | X38: Cori Lanigan | Y38: 02:52:51 | Z38: 00:45:39 | AA38: 02:52:51
B39: 159 | C39: Remember Terry | D39: Four Mixed | G39: Averil Wiley | H39: 00:22:54 | I39: 00:22:54 | L39: Jim Dickson | M39: 01:38:58 | O39: 01:38:58 | P39: 01:16:04 | S39: Josh Rea | T39: 02:16:05 | U39: 00:37:07 | X39: Averil Wiley | Y39: 02:54:26 | Z39: 00:38:21 | AA39: 02:54:26
B40: 155 | C40: Franco-Finns | D40: Four Mixed | G40: Jodie Whyte | H40: 00:37:44 | I40: 00:37:44 | L40: Julie Luoma | M40: 01:53:55 | O40: 01:53:55 | P40: 01:16:11 | S40: Matthew Luoma | T40: 02:26:22 | U40: 00:32:27 | X40: Mikael Maki | Y40: 03:02:55 | Z40: 00:36:33 | AA40: 03:02:55
B41: 153 | C41: The Weakest Link | D41: Four Mixed | G41: Cathy Lauzon | H41: 00:31:14 | I41: 00:31:14 | L41: Craig Runciman | M41: 01:28:31 | O41: 01:28:31 | P41: 00:57:17 | S41: Tania Shanks | T41: 02:17:20 | U41: 00:48:49 | X41: Lynn Runciman | Y41: 03:03:47 | Z41: 00:46:27 | AA41: 03:03:47
B42: 152 | C42: Get Out There | D42: Four Mixed | G42: Heather Williams | H42: 00:27:17 | I42: 00:27:17 | L42: Derek Fredette | M42: 01:34:41 | O42: 01:34:41 | P42: 01:07:24 | S42: Debbie Richard | T42: 02:27:09 | U42: 00:52:28 | X42: Derek Fredette | Y42: 03:13:24 | Z42: 00:46:15 | AA42: 03:13:24
B43: 150 | C43: A Little Broken But Not Beaton | D43: Four Mixed | G43: Keegan Anderson | H43: 00:23:49 | I43: 00:23:49 | L43: Donna Smrek | M43: 01:04:00 | O43: 01:04:00 | P43: 00:40:11 | S43: Lindsay Scruton | T43: 01:59:47 | U43: 00:55:47 | X43: Connor Anderson | Y43: 02:33:20 | Z43: 00:33:33 | AA43: 02:33:20
B45: 164 | C45: Hedge Hogs | D45: Four Men | G45: Julie Rathwell | H45: 00:18:26 | I45: =H45 -> 00:18:26 | L45: James Larmer | M45: 01:03:22 | O45: =M45-N45 -> 01:03:22 | P45: =O45-H45 -> 00:44:56 | S45: John Larmer | T45: 01:34:34 | U45: =T45-M45 -> 00:31:12 | X45: Eric Leishman | Y45: 02:02:00 | Z45: =Y45-T45 -> 00:27:26 | AA45: =SUM(Z45,I45,P45,U45,) -> 02:02:00
B46: 165 | C46: Contemporary Recreation | D46: Four Men | G46: Kelly Thompson | H46: 00:18:49 | I46: =H46 -> 00:18:49 | L46: Kelly Thompson | M46: 01:11:38 | O46: =M46-N46 -> 01:11:38 | P46: =O46-H46 -> 00:52:49 | S46: Sean Thompson | T46: 01:51:59 | U46: =T46-M46 -> 00:40:21 | X46: Josh Tillison | Y46: 02:21:49 | Z46: 00:29:50 | AA46: 02:21:49
B47: 161 | C47: TBD… | D47: Four Men | G47: Jade Bruins | H47: 00:21:51 | I47: =H47 -> 00:21:51 | L47: Peter Zuliani | M47: 01:15:39 | O47: =M47-N47 -> 01:15:39 | P47: =O47-H47 -> 00:53:48 | S47: Shawn Bruins | T47: 01:46:42 | U47: =T47-M47 -> 00:31:03 | X47: Michael Wainman | Y47: 02:25:29 | Z47: 00:38:47 | AA47: 02:25:29
B48: 160 | C48: Sudbury Rocks!! Or Whoever the Hell Shows Up | D48: Four Men | G48: Steve Matusch | H48: 00:23:19 | I48: =H48 -> 00:23:19 | L48: Wanda DeWulf | M48: 01:23:06 | O48: =M48-N48 -> 01:23:06 | P48: =O48-H48 -> 00:59:47 | S48: Brent Walker | T48: 01:57:59 | U48: =T48-M48 -> 00:34:53 | X48: Mike Wilson | Y48: 02:39:24 | Z48: 00:41:25 | AA48: 02:39:24
B49: 166 | C49: Weakest Link | D49: Four Men | G49: Jen Shelby | H49: 00:30:38 | I49: =H49 -> 00:30:38 | L49: Ryan Bradshaw | M49: 01:30:28 | O49: =M49-N49 -> 01:30:28 | P49: =O49-H49 -> 00:59:50 | S49: Alain Gauthier | T49: 02:09:11 | U49: =T49-M49 -> 00:38:43 | X49: Brad Smith | Y49: 02:46:05 | Z49: 00:36:54 | AA49: 02:46:05
B50: 167 | D50: Four Men | I50: =H50 -> 00:00:00 | O50: =M50-N50 -> 00:00:00 | P50: =O50-H50 -> 00:00:00 | U50: =T50-M50 -> 00:00:00 | Z50: 00:00:00 | AA50: 00:00:00
B51: 172 | C51: Half the Wabbits | D51: Four Women | G51: Karen Broughton | H51: 00:22:37 | I51: 00:22:37 | L51: Karen Renout | M51: 01:24:03 | O51: 01:24:03 | P51: 01:01:26 | S51: Mary Waddell | T51: 02:08:07 | U51: 00:44:04 | X51: Philippa Spoel | Y51: 03:00:14 | Z51: =Y51-T51 -> 00:52:07 | AA51: =SUM(Z51,I51,P51,U51,) -> 03:00:14
B80: 209 | I80: =H80 -> 00:00:00 | O80: 00:00:00 | P80: 00:00:00 | U80: =T80-M80 -> 00:00:00 | Z80: =Y80-T80 -> 00:00:00 | AA80: =SUM(Z80,I80,P80,U80,) -> 00:00:00
B81: 210 | I81: 00:00:00 | O81: 00:00:00 | P81: 00:00:00 | U81: 00:00:00 | Z81: 00:00:00 | AA81: 00:00:00
B82: 211 | I82: 00:00:00 | O82: 00:00:00 | P82: 00:00:00 | U82: 00:00:00 | Z82: 00:00:00 | AA82: 00:00:00
B83: 212 | I83: 00:00:00 | O83: 00:00:00 | P83: 00:00:00 | U83: 00:00:00 | Z83: 00:00:00 | AA83: 00:00:00
B84: 213 | I84: 00:00:00 | O84: 00:00:00 | P84: 00:00:00 | U84: 00:00:00 | Z84: 00:00:00 | AA84: 00:00:00
B85: 214 | I85: 00:00:00 | O85: 00:00:00 | P85: 00:00:00 | U85: 00:00:00 | Z85: 00:00:00 | AA85: 00:00:00
B86: 215 | I86: 00:00:00 | O86: 00:00:00 | P86: 00:00:00 | U86: 00:00:00 | Z86: 00:00:00 | AA86: 00:00:00
B87: 216 | I87: 00:00:00 | O87: 00:00:00 | P87: 00:00:00 | U87: 00:00:00 | Z87: 00:00:00 | AA87: 00:00:00
B88: 217 | I88: 00:00:00 | O88: 00:00:00 | P88: 00:00:00 | U88: 00:00:00 | Z88: 00:00:00 | AA88: 00:00:00
B89: 218 | I89: =H89 -> 00:00:00 | O89: 00:00:00 | P89: 00:00:00 | U89: 00:00:00 | Z89: 00:00:00 | AA89: 00:00:00
B90: 219 | I90: 00:00:00 | O90: 00:00:00 | P90: 00:00:00 | U90: 00:00:00 | Z90: 00:00:00 | AA90: 00:00:00
B91: 220 | I91: 00:00:00 | O91: 00:00:00 | P91: 00:00:00 | U91: 00:00:00 | Z91: 00:00:00 | AA91: 00:00:00
B92: 221 | I92: 00:00:00 | O92: 00:00:00 | P92: 00:00:00 | U92: 00:00:00 | Z92: 00:00:00 | AA92: 00:00:00
B93: 222 | I93: 00:00:00 | O93: 00:00:00 | P93: 00:00:00 | U93: 00:00:00 | Z93: 00:00:00 | AA93: 00:00:00
B94: 223 | I94: 00:00:00 | O94: 00:00:00 | P94: 00:00:00 | U94: 00:00:00 | Z94: 00:00:00 | AA94: 00:00:00
B95: 224 | I95: 00:00:00 | O95: 00:00:00 | P95: 00:00:00 | U95: 00:00:00 | Z95: 00:00:00 | AA95: 00:00:00
B96: 225 | I96: 00:00:00 | O96: 00:00:00 | P96: 00:00:00 | U96: 00:00:00 | Z96: 00:00:00 | AA96: 00:00:00
B97: 226 | I97: 00:00:00 | O97: 00:00:00 | P97: 00:00:00 | U97: 00:00:00 | Z97: 00:00:00 | AA97: 00:00:00
B98: 227 | I98: 00:00:00 | O98: 00:00:00 | P98: 00:00:00 | U98: 00:00:00 | Z98: 00:00:00 | AA98: 00:00:00
B99: 228 | I99: 00:00:00 | O99: 00:00:00 | P99: 00:00:00 | U99: 00:00:00 | Z99: 00:00:00 | AA99: 00:00:00
B100: 229 | I100: 00:00:00 | O100: 00:00:00 | P100: 00:00:00 | U100: 00:00:00 | Z100: 00:00:00 | AA100: 00:00:00
B101: 200 | I101: 00:00:00 | O101: 00:00:00 | P101: 00:00:00 | U101: 00:00:00 | Z101: 00:00:00 | AA101: 00:00:00
I102: 00:00:00 | O102: 00:00:00 | P102: 00:00:00 | U102: 00:00:00 | Z102: 00:00:00 | AA102: 00:00:00
B103: =B101+1 -> 201 | D103: DQ | F103: f11 | I103: 00:00:00 | O103: 00:00:00 | P103: 00:00:00 | U103: 00:00:00 | Z103: 00:00:00 | AA103: 00:00:00
B104: Time | I104: 00:00:00 | O104: 00:00:00 | P104: 00:00:00 | U104: 00:00:00 | Z104: 00:00:00 | AA104: 00:00:00
B105: =B103+1 -> 202 | D105: DQ | F105: m11 | I105: 00:00:00 | O105: 00:00:00 | P105: 00:00:00 | U105: 00:00:00 | Z105: 00:00:00 | AA105: 00:00:00
B106: Time | I106: 00:00:00 | O106: 00:00:00 | P106: 00:00:00 | U106: 00:00:00 | Z106: 00:00:00 | AA106: 00:00:00
B107: =B105+1 -> 203 | D107: DQ | F107: m10 | I107: 00:00:00 | O107: =M107-N107 -> 00:00:00 | P107: =O107-H107 -> 00:00:00 | U107: 00:00:00 | Z107: 00:00:00 | AA107: 00:00:00
B108: Time | I108: 00:00:00 | O108: 00:00:00 | P108: 00:00:00 | U108: 00:00:00 | Z108: 00:00:00 | AA108: 00:00:00
B109: =B107+1 -> 204 | D109: DQ | F109: f10 | I109: 00:00:00 | O109: 00:00:00 | P109: 00:00:00 | U109: 00:00:00 | Z109: 00:00:00 | AA109: 00:00:00
B110: Time | I110: 00:00:00 | O110: 00:00:00 | P110: 00:00:00 | U110: 00:00:00 | Z110: 00:00:00 | AA110: 00:00:00
B111: =B109+1 -> 205 | D111: DQ | F111: m8 | I111: 00:00:00 | O111: 00:00:00 | P111: 00:00:00 | U111: 00:00:00 | Z111: 00:00:00 | AA111: 00:00:00
B112: Time | I112: 00:00:00 | O112: 00:00:00 | P112: 00:00:00 | U112: 00:00:00 | Z112: 00:00:00 | AA112: 00:00:00
B113: =B111+1 -> 206 | D113: DQ | F113: m12 | I113: 00:00:00 | O113: 00:00:00 | P113: 00:00:00 | U113: 00:00:00 | Z113: 00:00:00 | AA113: 00:00:00
B114: Time | I114: 00:00:00 | O114: 00:00:00 | P114: 00:00:00 | U114: 00:00:00 | Z114: 00:00:00 | AA114: 00:00:00
B115: =B113+1 -> 207 | D115: DQ | F115: m11 | I115: 00:00:00 | O115: 00:00:00 | P115: 00:00:00 | U115: 00:00:00 | Z115: 00:00:00 | AA115: 00:00:00
B116: Time | I116: 00:00:00 | O116: 00:00:00 | P116: 00:00:00 | U116: 00:00:00 | Z116: 00:00:00 | AA116: 00:00:00
B117: =B115+1 -> 208 | D117: DQ | F117: f7 | I117: 00:00:00 | O117: 00:00:00 | P117: 00:00:00 | U117: 00:00:00 | Z117: 00:00:00 | AA117: 00:00:00
B118: Time | I118: 00:00:00 | O118: 00:00:00 | P118: 00:00:00 | U118: 00:00:00 | Z118: 00:00:00 | AA118: 00:00:00
B119: =B117+1 -> 209 | D119: DQ | F119: f9 | I119: 00:00:00 | O119: 00:00:00 | P119: 00:00:00 | U119: 00:00:00 | Z119: 00:00:00 | AA119: 00:00:00
B120: Time | I120: 00:00:00 | O120: 00:00:00 | P120: 00:00:00 | U120: 00:00:00 | Z120: 00:00:00 | AA120: 00:00:00
B121: =B119+1 -> 210 | D121: DQ | F121: m12 | I121: 00:00:00 | O121: 00:00:00 | P121: 00:00:00 | U121: 00:00:00 | Z121: 00:00:00 | AA121: 00:00:00
B122: Time | I122: 00:00:00 | O122: 00:00:00 | P122: 00:00:00 | U122: 00:00:00 | Z122: 00:00:00 | AA122: 00:00:00
B123: =B121+1 -> 211 | D123: DQ | F123: m? | I123: 00:00:00 | O123: 00:00:00 | P123: 00:00:00 | U123: =T123-M123 -> 00:00:00 | Z123: 00:00:00 | AA123: 00:00:00
B124: Time | I124: 00:00:00 | O124: 00:00:00 | P124: 00:00:00 | U124: 00:00:00 | Z124: 00:00:00 | AA124: 00:00:00
B125: =B123+1 -> 212 | D125: DQ | F125: m12 | I125: 00:00:00 | O125: 00:00:00 | P125: 00:00:00 | U125: 00:00:00 | Z125: 00:00:00 | AA125: 00:00:00
B126: Time | I126: 00:00:00 | O126: 00:00:00 | P126: 00:00:00 | U126: 00:00:00 | Z126: 00:00:00 | AA126: 00:00:00
B127: =B125+1 -> 213 | D127: DQ | F127: f8 | I127: 00:00:00 | O127: 00:00:00 | P127: 00:00:00 | U127: 00:00:00 | Z127: 00:00:00 | AA127: 00:00:00
B128: Time | I128: 00:00:00 | O128: 00:00:00 | P128: 00:00:00 | U128: 00:00:00 | Z128: 00:00:00 | AA128: 00:00:00
B129: =B127+1 -> 214 | D129: DQ | F129: m12 | I129: 00:00:00 | O129: 00:00:00 | P129: 00:00:00 | U129: 00:00:00 | Z129: 00:00:00 | AA129: 00:00:00
B130: Time | I130: 00:00:00 | O130: 00:00:00 | P130: 00:00:00 | U130: 00:00:00 | Z130: 00:00:00 | AA130: 00:00:00
B131: =B129+1 -> 215 | D131: DQ | F131: f11 | I131: 00:00:00 | O131: 00:00:00 | P131: 00:00:00 | U131: 00:00:00 | Z131: 00:00:00 | AA131: 00:00:00
B132: Time | I132: 00:00:00 | O132: 00:00:00 | P132: 00:00:00 | U132: 00:00:00 | Z132: 00:00:00 | AA132: 00:00:00
B133: =B131+1 -> 216 | I133: 00:00:00 | O133: 00:00:00 | P133: 00:00:00 | U133: 00:00:00 | Z133: 00:00:00 | AA133: 00:00:00
B134: Time | I134: 00:00:00 | O134: 00:00:00 | P134: 00:00:00 | U134: =T134-M134 -> 00:00:00 | Z134: 00:00:00 | AA134: =SUM(Z134,I134,P134,U134,) -> 00:00:00
B135: =B133+1 -> 217 | I135: 00:00:00 | O135: 00:00:00 | P135: 00:00:00 | U135: 00:00:00 | Z135: 00:00:00 | AA135: 00:00:00
B136: Time | I136: 00:00:00 | O136: 00:00:00 | P136: 00:00:00 | U136: 00:00:00 | Z136: 00:00:00 | AA136: 00:00:00
B137: =B135+1 -> 218 | I137: 00:00:00 | O137: 00:00:00 | P137: 00:00:00 | U137: 00:00:00 | Z137: 00:00:00 | AA137: 00:00:00
B138: Time | I138: 00:00:00 | O138: 00:00:00 | P138: 00:00:00 | U138: 00:00:00 | Z138: 00:00:00 | AA138: 00:00:00
B139: =B137+1 -> 219 | I139: 00:00:00 | O139: 00:00:00 | P139: 00:00:00 | U139: 00:00:00 | Z139: 00:00:00 | AA139: 00:00:00
B140: Time | I140: 00:00:00 | O140: 00:00:00 | P140: 00:00:00 | U140: 00:00:00 | Z140: 00:00:00 | AA140: 00:00:00
B141: =B139+1 -> 220 | I141: 00:00:00 | O141: 00:00:00 | P141: 00:00:00 | U141: 00:00:00 | Z141: =Y141-T141 -> 00:00:00 | AA141: =SUM(Z141,I141,P141,U141,) -> 00:00:00
B142: Time | I142: 00:00:00 | O142: 00:00:00 | P142: 00:00:00 | U142: 00:00:00 | Z142: 00:00:00 | AA142: 00:00:00
B143: =B141+1 -> 221 | I143: 00:00:00 | O143: 00:00:00 | P143: 00:00:00 | U143: 00:00:00 | Z143: 00:00:00 | AA143: 00:00:00
B144: Time | I144: 00:00:00 | O144: 00:00:00 | P144: 00:00:00 | U144: 00:00:00 | Z144: 00:00:00 | AA144: 00:00:00
B145: =B143+1 -> 222 | I145: 00:00:00 | O145: 00:00:00 | P145: 00:00:00 | U145: 00:00:00 | Z145: 00:00:00 | AA145: 00:00:00
B146: Time | I146: 00:00:00 | O146: 00:00:00 | P146: 00:00:00 | U146: 00:00:00 | Z146: 00:00:00 | AA146: 00:00:00
B147: =B145+1 -> 223 | I147: 00:00:00 | O147: 00:00:00 | P147: 00:00:00 | U147: 00:00:00 | Z147: 00:00:00 | AA147: 00:00:00
I148: 00:00:00 | O148: 00:00:00 | P148: 00:00:00 | U148: 00:00:00 | Z148: 00:00:00 | AA148: 00:00:00
I149: 00:00:00 | O149: 00:00:00 | P149: 00:00:00 | U149: 00:00:00 | Z149: 00:00:00 | AA149: 00:00:00
I150: 00:00:00 | O150: 00:00:00 | P150: 00:00:00 | U150: 00:00:00 | Z150: 00:00:00 | AA150: 00:00:00
I151: 00:00:00 | O151: 00:00:00 | P151: 00:00:00 | U151: 00:00:00 | Z151: 00:00:00 | AA151: 00:00:00
I152: 00:00:00 | O152: 00:00:00 | P152: 00:00:00 | U152: 00:00:00 | Z152: 00:00:00 | AA152: 00:00:00
I153: =H153 -> 00:00:00 | O153: 00:00:00 | P153: 00:00:00 | U153: 00:00:00 | Z153: 00:00:00 | AA153: 00:00:00
I154: 00:00:00 | O154: 00:00:00 | P154: 00:00:00 | U154: 00:00:00 | Z154: 00:00:00 | AA154: 00:00:00
I155: 00:00:00 | O155: 00:00:00 | P155: 00:00:00 | U155: 00:00:00 | Z155: 00:00:00 | AA155: 00:00:00
I156: 00:00:00 | O156: 00:00:00 | P156: 00:00:00 | U156: 00:00:00 | Z156: 00:00:00 | AA156: 00:00:00
I157: 00:00:00 | O157: 00:00:00 | P157: 00:00:00 | U157: 00:00:00 | Z157: 00:00:00 | AA157: 00:00:00
I158: 00:00:00 | O158: 00:00:00 | P158: 00:00:00 | U158: 00:00:00 | Z158: 00:00:00 | AA158: 00:00:00
I159: 00:00:00 | O159: 00:00:00 | P159: 00:00:00 | U159: 00:00:00 | Z159: 00:00:00 | AA159: 00:00:00
I160: 00:00:00 | O160: 00:00:00 | P160: 00:00:00 | U160: 00:00:00 | Z160: 00:00:00 | AA160: 00:00:00
I161: 00:00:00 | O161: 00:00:00 | P161: 00:00:00 | U161: 00:00:00 | Z161: 00:00:00 | AA161: 00:00:00
I162: 00:00:00 | O162: 00:00:00 | P162: 00:00:00 | U162: 00:00:00 | Z162: 00:00:00 | AA162: 00:00:00
I163: 00:00:00 | O163: 00:00:00 | P163: 00:00:00 | U163: 00:00:00 | Z163: 00:00:00 | AA163: 00:00:00
I164: 00:00:00 | O164: 00:00:00 | P164: 00:00:00 | U164: 00:00:00 | Z164: 00:00:00 | AA164: 00:00:00
I165: 00:00:00 | O165: 00:00:00 | P165: 00:00:00 | U165: 00:00:00 | Z165: 00:00:00 | AA165: 00:00:00
I166: 00:00:00 | O166: 00:00:00 | P166: 00:00:00 | U166: 00:00:00 | Z166: 00:00:00 | AA166: 00:00:00
I167: 00:00:00 | O167: 00:00:00 | P167: 00:00:00 | U167: 00:00:00 | Z167: 00:00:00 | AA167: 00:00:00
I168: 00:00:00 | O168: 00:00:00 | P168: 00:00:00 | U168: 00:00:00 | Z168: 00:00:00 | AA168: 00:00:00
I169: 00:00:00 | O169: 00:00:00 | P169: 00:00:00 | U169: 00:00:00 | Z169: 00:00:00 | AA169: 00:00:00
I170: 00:00:00 | O170: 00:00:00 | P170: 00:00:00 | U170: 00:00:00 | Z170: 00:00:00 | AA170: 00:00:00
I171: 00:00:00 | O171: =M171-N171 -> 00:00:00 | P171: =O171-H171 -> 00:00:00 | U171: 00:00:00 | Z171: 00:00:00 | AA171: 00:00:00
I172: 00:00:00 | O172: 00:00:00 | P172: 00:00:00 | U172: 00:00:00 | Z172: 00:00:00 | AA172: 00:00:00
I173: 00:00:00 | O173: 00:00:00 | P173: 00:00:00 | U173: 00:00:00 | Z173: 00:00:00 | AA173: 00:00:00
I174: 00:00:00 | O174: 00:00:00 | P174: 00:00:00 | U174: 00:00:00 | Z174: 00:00:00 | AA174: 00:00:00
I175: 00:00:00 | O175: 00:00:00 | P175: 00:00:00 | U175: 00:00:00 | Z175: 00:00:00 | AA175: 00:00:00
I176: 00:00:00 | O176: 00:00:00 | P176: 00:00:00 | U176: 00:00:00 | Z176: 00:00:00 | AA176: 00:00:00
I177: 00:00:00 | O177: 00:00:00 | P177: 00:00:00 | U177: 00:00:00 | Z177: 00:00:00 | AA177: 00:00:00
I178: 00:00:00 | O178: 00:00:00 | P178: 00:00:00 | U178: 00:00:00 | Z178: 00:00:00 | AA178: 00:00:00
I179: 00:00:00 | O179: 00:00:00 | P179: 00:00:00 | U179: 00:00:00 | Z179: 00:00:00 | AA179: 00:00:00
I180: 00:00:00 | O180: 00:00:00 | P180: 00:00:00 | U180: 00:00:00 | Z180: 00:00:00 | AA180: 00:00:00
I181: 00:00:00 | O181: 00:00:00 | P181: 00:00:00 | U181: 00:00:00 | Z181: 00:00:00 | AA181: 00:00:00
I182: 00:00:00 | O182: 00:00:00 | P182: 00:00:00 | U182: 00:00:00 | Z182: 00:00:00 | AA182: 00:00:00
I183: 00:00:00 | O183: 00:00:00 | P183: 00:00:00 | U183: 00:00:00 | Z183: 00:00:00 | AA183: 00:00:00
I184: 00:00:00 | O184: 00:00:00 | P184: 00:00:00 | U184: 00:00:00 | Z184: 00:00:00 | AA184: 00:00:00
I185: 00:00:00 | O185: 00:00:00 | P185: 00:00:00 | U185: 00:00:00 | Z185: 00:00:00 | AA185: 00:00:00
I186: 00:00:00 | O186: 00:00:00 | P186: 00:00:00 | U186: 00:00:00 | Z186: 00:00:00 | AA186: 00:00:00
I187: 00:00:00 | O187: 00:00:00 | P187: 00:00:00 | U187: =T187-M187 -> 00:00:00 | Z187: 00:00:00 | AA187: 00:00:00
I188: 00:00:00 | O188: 00:00:00 | P188: 00:00:00 | U188: 00:00:00 | Z188: 00:00:00 | AA188: 00:00:00
I189: 00:00:00 | O189: 00:00:00 | P189: 00:00:00 | U189: 00:00:00 | Z189: 00:00:00 | AA189: 00:00:00
I190: 00:00:00 | O190: 00:00:00 | P190: 00:00:00 | U190: 00:00:00 | Z190: 00:00:00 | AA190: 00:00:00
I191: 00:00:00 | O191: 00:00:00 | P191: 00:00:00 | U191: 00:00:00 | Z191: 00:00:00 | AA191: 00:00:00
I192: 00:00:00 | O192: 00:00:00 | P192: 00:00:00 | U192: 00:00:00 | Z192: 00:00:00 | AA192: 00:00:00
I193: 00:00:00 | O193: 00:00:00 | P193: 00:00:00 | U193: 00:00:00 | Z193: 00:00:00 | AA193: 00:00:00
I194: 00:00:00 | O194: 00:00:00 | P194: 00:00:00 | U194: 00:00:00 | Z194: 00:00:00 | AA194: 00:00:00
I195: 00:00:00 | O195: 00:00:00 | P195: 00:00:00 | U195: 00:00:00 | Z195: 00:00:00 | AA195: 00:00:00
I196: 00:00:00 | O196: 00:00:00 | P196: 00:00:00 | U196: 00:00:00 | Z196: 00:00:00 | AA196: 00:00:00
I197: 00:00:00 | O197: 00:00:00 | P197: 00:00:00 | U197: 00:00:00 | Z197: 00:00:00 | AA197: 00:00:00
I198: 00:00:00 | O198: 00:00:00 | P198: 00:00:00 | U198: 00:00:00 | Z198: 00:00:00 | AA198: 00:00:00
I199: 00:00:00 | O199: 00:00:00 | P199: 00:00:00 | U199: 00:00:00 | Z199: 00:00:00 | AA199: 00:00:00
I200: 00:00:00 | O200: 00:00:00 | P200: 00:00:00 | U200: 00:00:00 | Z200: 00:00:00 | AA200: 00:00:00
I201: 00:00:00 | O201: 00:00:00 | P201: 00:00:00 | U201: 00:00:00 | Z201: 00:00:00 | AA201: 00:00:00
I202: 00:00:00 | O202: 00:00:00 | P202: 00:00:00 | U202: 00:00:00 | Z202: 00:00:00 | AA202: 00:00:00
I203: 00:00:00 | O203: 00:00:00 | P203: 00:00:00 | U203: 00:00:00 | Z203: 00:00:00 | AA203: 00:00:00
I204: 00:00:00 | O204: 00:00:00 | P204: 00:00:00 | U204: 00:00:00 | Z204: 00:00:00 | AA204: 00:00:00
I205: 00:00:00 | O205: 00:00:00 | P205: 00:00:00 | U205: 00:00:00 | Z205: =Y205-T205 -> 00:00:00 | AA205: =SUM(Z205,I205,P205,U205,) -> 00:00:00
I206: 00:00:00 | O206: 00:00:00 | P206: 00:00:00 | U206: 00:00:00 | Z206: 00:00:00 | AA206: 00:00:00
I207: 00:00:00 | O207: 00:00:00 | P207: 00:00:00 | U207: 00:00:00 | Z207: 00:00:00 | AA207: 00:00:00
I208: 00:00:00 | O208: 00:00:00 | P208: 00:00:00 | U208: 00:00:00 | Z208: 00:00:00 | AA208: 00:00:00
I209: 00:00:00 | O209: 00:00:00 | P209: 00:00:00 | U209: 00:00:00 | Z209: 00:00:00 | AA209: 00:00:00
I210: 00:00:00 | O210: 00:00:00 | P210: 00:00:00 | U210: 00:00:00 | Z210: 00:00:00 | AA210: 00:00:00
I211: 00:00:00 | O211: 00:00:00 | P211: 00:00:00 | U211: 00:00:00 | Z211: 00:00:00 | AA211: 00:00:00
I212: 00:00:00 | O212: 00:00:00 | P212: 00:00:00 | U212: 00:00:00 | Z212: 00:00:00 | AA212: 00:00:00
I213: 00:00:00 | O213: 00:00:00 | P213: 00:00:00 | U213: 00:00:00 | Z213: 00:00:00 | AA213: 00:00:00
I214: 00:00:00 | O214: 00:00:00 | P214: 00:00:00 | U214: 00:00:00 | Z214: 00:00:00 | AA214: 00:00:00
I215: 00:00:00 | O215: 00:00:00 | P215: 00:00:00 | U215: 00:00:00 | Z215: 00:00:00 | AA215: 00:00:00
I216: 00:00:00 | O216: 00:00:00 | P216: 00:00:00 | U216: 00:00:00 | Z216: 00:00:00 | AA216: 00:00:00
I217: =H217 -> 00:00:00 | O217: 00:00:00 | P217: 00:00:00 | U217: 00:00:00 | Z217: 00:00:00 | AA217: 00:00:00
I218: 00:00:00 | O218: 00:00:00 | P218: 00:00:00 | U218: 00:00:00 | Z218: 00:00:00 | AA218: 00:00:00
I219: 00:00:00 | O219: 00:00:00 | P219: 00:00:00 | U219: 00:00:00 | Z219: 00:00:00 | AA219: 00:00:00
I220: 00:00:00 | O220: 00:00:00 | P220: 00:00:00 | U220: 00:00:00 | Z220: 00:00:00 | AA220: 00:00:00
I221: 00:00:00 | O221: 00:00:00 | P221: 00:00:00 | U221: 00:00:00 | Z221: 00:00:00 | AA221: 00:00:00
I222: 00:00:00 | O222: 00:00:00 | P222: 00:00:00 | U222: 00:00:00 | Z222: 00:00:00 | AA222: 00:00:00
I223: 00:00:00 | O223: 00:00:00 | P223: 00:00:00 | U223: 00:00:00 | Z223: 00:00:00 | AA223: 00:00:00
I224: 00:00:00 | O224: 00:00:00 | P224: 00:00:00 | U224: 00:00:00 | Z224: 00:00:00 | AA224: 00:00:00
I225: 00:00:00 | O225: 00:00:00 | P225: 00:00:00 | U225: 00:00:00 | Z225: 00:00:00 | AA225: 00:00:00
I226: 00:00:00 | O226: 00:00:00 | P226: 00:00:00 | U226: 00:00:00 | Z226: 00:00:00 | AA226: 00:00:00
I227: 00:00:00 | O227: 00:00:00 | P227: 00:00:00 | U227: 00:00:00 | Z227: 00:00:00 | AA227: 00:00:00
I228: 00:00:00 | O228: 00:00:00 | P228: 00:00:00 | U228: 00:00:00 | Z228: 00:00:00 | AA228: 00:00:00
I229: 00:00:00 | O229: 00:00:00 | P229: 00:00:00 | U229: 00:00:00 | Z229: 00:00:00 | AA229: 00:00:00
I230: 00:00:00 | O230: 00:00:00 | P230: 00:00:00 | U230: 00:00:00 | Z230: 00:00:00 | AA230: 00:00:00
... 99 more rows
